Cogmind - Beta 17 @@@ ROGUE MODE // 2026.08.09 @ 03:34:07 Player: 4R-ZE3 Result: Destroyed by P-80 Master with Gamma Rifle Performance ------------- Evolutions (7) 3500 Regions Visited (9) 1800 Robots Destroyed (93) 465 Value Destroyed (3990) 3990 Prototype IDs (11) 220 Alien Tech Used (0) 0 Bonus (1681) 1681 TOTAL SCORE: 11656 Bonus ------- High Alert Combat Kills 162 Follower Combat Kills 719 Registered with UFD 300 Met Optimus in HQ 500 Cogmind --------- Core Integrity 0/1300 Matter 300/300 Energy 46/100 System Corruption 7% Temperature Cool (0) Movement Core (100) Ox1 Location -3/Research Parts ------- > --- POWER (2) -------- (None) > --- PROPULSION (6) --- (None) > --- UTILITY (11) ----- Advanced Signal Interpreter Improved Melee Analysis Suite Advanced Melee Analysis Suite > --- WEAPON (2) ------- Companion Sword > --- INVENTORY (5) ---- Particle Reactor Large Storage Unit Improved Cloaking Device Graphene Brace Enhanced Nova Cannon Peak State ------------ > --- POWER ------------ Antimatter Reactor Light Antimatter Reactor > --- PROPULSION ------- Antigrav System Combat Gravmag System Combat Gravmag System Improved Antigrav System Improved Antigrav System Improved Linear Gravjet > --- UTILITY ---------- Advanced Heat Sink Large Storage Unit Long-range Sensor Array Advanced Signal Interpreter Advanced Melee Analysis Suite Advanced Melee Analysis Suite Advanced Melee Analysis Suite Nanoactuators Advanced Hacking Suite > --- WEAPON ----------- Enhanced Nova Cannon Companion Sword > --- INVENTORY -------- Antigrav System Antigrav System Gyrokinetic Inverter Linear Gravjet Combat Gravmag System Improved Antigrav System Advanced Trap Scanner Microactuators Improved Transmission Jammer Advanced Reaction Control System Advanced Phase Shifter Improved Cloaking Device Layered Medium Armor Plating Graphene Brace [Rating: 122] Favorites ----------- Power Subdweller Power Source Engine Subdweller Power Source Power Core Neutrino Core Reactor Light Antimatter Reactor Propulsion Improved Treads Treads Improved Treads Leg Flexi-carbon Leg Wheel Armored Huge Wheel Hover Unit Antigrav System Flight Unit Xenon Bombardment Thruster Utility Hardened Light Armor Plating Device Improved Reaction Control System Storage High-capacity Storage Unit Processor Advanced Melee Analysis Suite Hackware Advanced Hacking Suite Protection Hardened Light Armor Plating Weapon Heavy Assault Rifle Energy Cannon Advanced Plasma Cannon Ballistic Gun Heavy Assault Rifle Launcher Rocket Launcher Slashing Weapon Companion Sword Build | -11 -10 -10 -7 -7 -5 -4 -4 -4 -3 ------- Run | Yrd Mat Sub Rec Scr Fac Fac Was Fac Res Slots Evolved 14 | . . . . . 10 2 . . 2 Power 1 | . . . . . . 1 . . . Propulsion 4 | . . . . . 4 . . . . Utility 9 | . . . . . 6 1 . . 2 Weapon . | . . . . . . . . . . Parts Attached 144 | 8 8 2 3 9 34 39 1 27 13 Power 21 | 2 . 1 . 1 4 7 . 3 3 Engine 6 | 2 . 1 . 1 . 2 . . . Core 9 | . . . . . 4 4 . 1 . Reactor 6 | . . . . . . 1 . 2 3 Propulsion 65 | 2 1 1 1 5 16 18 . 14 7 Treads 6 | 2 1 1 1 1 . . . . . Leg 13 | . . . . . 11 2 . . . Wheel 2 | . . . . 2 . . . . . Hover 36 | . . . . . 1 16 . 14 5 Flight 8 | . . . . 2 4 . . . 2 Utility 47 | 1 4 . 1 1 14 13 1 9 3 Device 26 | . . . . . 9 7 1 7 2 Storage 4 | 1 3 . . . . . . . . Processor 9 | . . . . . 2 6 . 1 . Hackware 2 | . . . . . 2 . . . . Protection 6 | . 1 . 1 1 1 . . 1 1 Artifact . | . . . . . . . . . . Weapon 11 | 3 3 . 1 2 . 1 . 1 . Energy Gun . | . . . . . . . . . . Energy Cannon 2 | . . . . . . 1 . 1 . Ballistic Gun 7 | 3 2 . 1 1 . . . . . Ballistic Cannon . | . . . . . . . . . . Launcher 1 | . 1 . . . . . . . . Special Weapon . | . . . . . . . . . . Impact Weapon . | . . . . . . . . . . Slashing Weapon 1 | . . . . 1 . . . . . Piercing Weapon . | . . . . . . . . . . Special Melee Weapon . | . . . . . . . . . . Unidentified Prototypes 4 | . . . . 1 1 1 1 . . Parts Lost 70 | . . 3 . . 5 22 . 16 24 Power 11 | . . 1 . . . 3 . 4 3 Propulsion 36 | . . 1 . . 1 13 . 9 12 Utility 22 | . . 1 . . 3 6 . 3 9 Weapon 1 | . . . . . 1 . . . . Highest Loss Streak 13 | . . 3 . . 2 10 . 12 13 To Critical Strikes . | . . . . . . . . . . Average Backups 14 | 2 9 17 19 17 11 12 11 14 5 Power . | . . . 1 . 1 . 1 . . Propulsion 7 | . 3 6 8 8 8 8 3 5 . Utility 3 | . . 2 3 5 1 3 5 7 2 Weapon 3 | . 5 6 7 3 . . 1 1 1 Tool/Special . | . . . . . . . . . . Unused Backups 51 | . 6 . 2 16 17 3 . 7 . Power 1 | . . . . . 1 . . . . Propulsion 12 | . 2 . 2 2 4 2 . . . Utility 28 | . 1 . . 9 10 1 . 7 . Weapon 10 | . 3 . . 5 2 . . . . Tool/Special . | . . . . . . . . . . Average Slot Usage (%) 88 | . 99 97 96 81 91 86 94 92 76 Engine 5 | . 14 13 14 6 . 2 . . . Core 1 | . . . . . 4 4 5 1 . Treads 13 | . 28 27 28 18 . . . . . Leg 5 | . . . . . 29 16 . . . Wheel 1 | . . . . 4 . . . . . Hover 4 | . . . . . . 12 31 30 20 Device 5 | . . . . . 20 11 10 13 19 Storage 10 | . 16 14 14 13 4 5 5 5 3 Processor 5 | . . . . . 5 20 26 20 14 Hackware 1 | . . . . . 3 5 5 5 3 Protection 9 | . 11 12 10 14 4 . . . 2 Ballistic Gun 14 | . 28 25 28 20 . . . . . Slashing Weapon 2 | . . . . 2 5 5 5 5 4 Peak Build Rating 122 | 6 11 13 18 25 80 109 112 122 122 Average Rating 42 | 4 8 11 16 18 72 88 107 108 98 On Entrance 43 | . 6 11 13 18 22 78 105 108 75 Avg Prop Armor Cover (%) 12 | . . . . . 1 17 . 6 2 Naked Turns . | . . . . . . . . . . Heaviest Build 70 | 14 54 54 56 58 56 66 52 69 70 Greatest Support 115 | 40 40 43 46 46 110 115 68 78 74 Greatest Overweight (x) 8 | . 1 1 1 2 1 8 . 1 2 Average Overweight (x) . | . . 1 1 1 . . . . . Largest Inventory Capacity 20 | 8 20 20 20 20 20 15 15 15 15 Average Capacity 17 | 7 12 20 20 19 14 15 15 15 14 Most Carried 20 | 4 15 20 20 20 15 15 14 15 8 Average Carried 15 | 2 9 17 19 18 13 13 12 14 5 Final Capacity 20 | 8 20 20 20 20 15 15 15 15 5 Final Carried 20 | 4 15 18 20 15 15 10 14 9 5 Class Distribution -------------------- 65% | Mutant 28% | Scavenger-Mutant Dominant Class ---------------- Mutant | -10/Materials Mutant | -10/Subcaves Mutant | -7/Recycling Mutant | -7/Scraptown Scavenger-Mutant | -5/Factory Scavenger-Mutant | -4/Factory Scavenger-Mutant | -4/Waste Scavenger-Mutant | -4/Factory Scavenger-Mutant | -3/Research Resources | -11 -10 -10 -7 -7 -5 -4 -4 -4 -3 ----------- Run | Yrd Mat Sub Rec Scr Fac Fac Was Fac Res Matter Collected 2859 | 169 425 225 182 180 456 514 40 484 184 Remotely . | . . . . . . . . . . Salvage Created 4495 | . 472 285 100 . 736 1442 . 558 902 Parts 252 | . 33 18 3 . 49 73 . 34 42 Haulers Intercepted 2 | . 2 . . . . . . . . Recyclers Shooed 1 | . . . 1 . . . . . . Parts Field Recycled . | . . . . . . . . . . Retrieved Matter . | . . . . . . . . . . Parts Self-Destructed 1 | . . 1 . . . . . . . Prevented . | . . . . . . . . . . Parts Restored . | . . . . . . . . . . Kills | -11 -10 -10 -7 -7 -5 -4 -4 -4 -3 ------- Run | Yrd Mat Sub Rec Scr Fac Fac Was Fac Res Combat Hostiles Destroyed 68 | . 12 9 . . 11 18 . 7 11 Melee 45 | . . . . . 11 18 . 5 11 Guns 13 | . 9 4 . . . . . . . AOE 10 | . 3 5 . . . . . 2 . Classes Destroyed 14 | . 5 2 1 . 4 1 . 1 . Builder 3 | . 2 . . . . . . 1 . Hauler 2 | . 2 . . . . . . . . Recycler 7 | . . . 1 . 1 3 . . 2 Operator 7 | . 1 . . . 1 3 . 2 . Turret 2 | . . 2 . . . . . . . Watcher 4 | . . . . . 1 1 . 2 . Swarmer 22 | . 6 3 . . 4 5 . . 4 Grunt 14 | . 6 2 . . 1 1 . 2 2 Brawler 1 | . . . . . . . . 1 . Duelist 2 | . . . . . . 2 . . . Sentry 8 | . . . . . 1 3 . 1 3 Hunter 1 | . . . . . 1 . . . . Programmer 16 | . . . . . 4 7 . 3 2 Subdweller 4 | . . 4 . . . . . . . Best Kill Streak 6 | . 4 5 1 . 3 5 . 2 6 Combat Bots Only 5 | . 4 3 . . 3 5 . 2 5 Max Kills in Single Turn 3 | . 3 1 1 . 1 1 . 2 1 Gunslinging . | . . . . . . . . . . Exploded 3 | . 3 1 . . . . . 2 . Melee 1 | . . . . . 1 1 . 1 1 Uniques/NPCs Destroyed . | . . . . . . . . . . Combat | -11 -10 -10 -7 -7 -5 -4 -4 -4 -3 -------- Run | Yrd Mat Sub Rec Scr Fac Fac Was Fac Res Hostile Shots Fired 746 | . 62 65 . . 94 156 . 148 221 Missed 230 | . 11 20 . . 31 40 . 62 66 Hits 516 | . 51 45 . . 63 116 . 86 155 Melee 37 | . . . . . . 37 . . . Projectile 479 | . 51 45 . . 63 79 . 86 155 AOE 2 | . . . . . . . . 2 . Critical Strikes 32 | . . . . . 2 14 . 11 5 Actively Blocked 2 | . . . . . . . . . 2 Damage Taken 10475 | . 528 428 . . 1233 3102 . 1985 3199 Core 2920 | . 129 95 . . 250 700 . 436 1310 Absorbed by Shields . | . . . . . . . . . . Regen/Repaired (Parts) 419 | . . . . 296 . . 26 97 . Core Remaining (%) 46 | 100 . . . 10 75 . . 1 . Volleys Fired 92 | . 50 28 2 . 1 3 . 8 . Largest 2 | . 2 2 2 . 1 1 . 1 . Hottest 120 | . 46 56 46 . 33 98 . 120 . Shots Fired 158 | . 99 42 4 . 1 3 . 9 . Gun 129 | . 98 27 4 . . . . . . Cannon 12 | . . . . . . 3 . 9 . Launcher 17 | . 1 15 . . 1 . . . . Special . | . . . . . . . . . . Kinetic 129 | . 98 27 4 . . . . . . Thermal 12 | . . . . . . 3 . 9 . Explosive 17 | . 1 15 . . 1 . . . . Electromagnetic . | . . . . . . . . . . Robot Hit Streak 14 | . 8 14 2 . . . . 1 . Robot Miss Streak 3 | . 2 3 1 . . . . . . Penetration Max . | . . . . . . . . . . Secondary Targets . | . . . . . . . . . . Shots Hit Robots 279 | . 61 24 2 . 38 86 . 24 44 Core Hits 129 | . 25 23 2 . 15 31 . 15 18 Critical Kills . | . . . . . . . . . . Critical Parts Destroyed 2 | . 2 . . . . . . . . Critical Strikes 6 | . 2 . . . 2 2 . . . Destroy 2 | . 2 . . . . . . . . Melee Attacks 277 | . . . . . 63 116 . 47 51 Impact . | . . . . . . . . . . Slashing 277 | . . . . . 63 116 . 47 51 Piercing . | . . . . . . . . . . Sneak Attacks 15 | . . . . . 2 8 . 2 3 Combat Hostiles 3 | . . . . . . 2 . . 1 Follow-up Attacks 3 | . . . . . . 3 . . . Damage Inflicted 12375 | . 1065 880 42 . 1752 4126 . 2524 1986 Guns 1185 | . 834 309 42 . . . . . . Cannons 43 | . . . . . . . . 43 . Explosions 2084 | . 231 571 . . 58 . . 1224 . Melee 9058 | . . . . . 1694 4126 . 1252 1986 Ramming 5 | . . . . . . . . 5 . Kinetic 1185 | . 834 309 42 . . . . . . Thermal 1267 | . . . . . . . . 1267 . Explosive 860 | . 231 571 . . 58 . . . . Electromagnetic . | . . . . . . . . . . Impact . | . . . . . . . . . . Slashing 9058 | . . . . . 1694 4126 . 1252 1986 Piercing . | . . . . . . . . . . Highest Corruption 14 | . 1 1 1 . 3 7 . 14 6 Average Corruption 3 | . 1 1 1 . 1 3 . 8 2 Corruption Purged 4 | . . . . . 4 . . . . Corruption Blocked . | . . . . . . . . . . Effects 72 | . 1 5 4 . 3 19 . 36 4 Message Errors 18 | . . 1 . . 1 4 . 12 . Matter Fused 15 | . . 2 . . 1 4 . 7 1 Heat Flow Errors 9 | . 1 1 1 . . 1 . 4 1 Energy Discharges 13 | . . . 1 . . 6 . 6 . Parts Fused 2 | . . . . . . 1 . . 1 Data Loss (minor) 8 | . . 1 . . 1 1 . 4 1 Data Loss (major) 2 | . . . . . . 1 . 1 . Misfires 1 | . . . . . . . . 1 . Alerts 3 | . . . 2 . . 1 . . . Misdirections 1 | . . . . . . . . 1 . Overload Shots . | . . . . . . . . . . Overflow Damage 717 | . . 19 . . 144 316 . 165 73 Projectiles . | . . . . . . . . . . Explosions 100 | . . 19 . . . . . 81 . Melee 617 | . . . . . 144 316 . 84 73 Knockbacks . | . . . . . . . . . . Impact . | . . . . . . . . . . Kinetic . | . . . . . . . . . . Secondary . | . . . . . . . . . . Self-Inflicted Damage 46 | . . . . . . . . 46 . Shots 1 | . . . . . . . . 1 . Rammed 1 | . . . . . . . . 1 . Targets Rammed 1 | . . . . . . . . 1 . Kicked . | . . . . . . . . . . Crushed . | . . . . . . . . . . Highest Temperature 409 | . 181 234 269 . 378 261 9 409 212 Average Temperature 62 | . 32 124 143 . 47 48 5 75 69 Received Heat Transfer 963 | . 123 159 . . 54 63 . 243 321 Effects 8 | . . . . . . 2 . 6 . Shutdowns 2 | . . . . . . . . 2 . Interference 5 | . . . . . . 2 . 3 . Short Circuit 1 | . . . . . . . . 1 . Siege Activations . | . . . . . . . . . . Martial Activations . | . . . . . . . . . . Shielding Activations . | . . . . . . . . . . Robots Disrupted 3 | . . . . . . . . 1 2 Combat Hostiles 2 | . . . . . . . . . 2 Robots Corrupted . | . . . . . . . . . . Combat Hostiles . | . . . . . . . . . . Parts Fried . | . . . . . . . . . . Impact Corruptions . | . . . . . . . . . . Robots Melted . | . . . . . . . . . . Combat Hostiles . | . . . . . . . . . . Parts Melted . | . . . . . . . . . . Heat Transferred 762 | . . . . . . . . 762 . Parts Sabotaged . | . . . . . . . . . . Parts Stolen . | . . . . . . . . . . Parts Stripped . | . . . . . . . . . . Power Chain Reactions . | . . . . . . . . . . Alert | -11 -10 -10 -7 -7 -5 -4 -4 -4 -3 ------- Run | Yrd Mat Sub Rec Scr Fac Fac Was Fac Res Maximum Alert Level 2 | . . . . . . 1 . 2 2 Low Security (%) 80 | 100 100 . 100 . 100 96 100 4 . Level 1 5 | . . . . . . 3 . . 92 Level 2 14 | . . . . . . . . 94 7 Level 3 . | . . . . . . . . . . Level 4 . | . . . . . . . . . . Level 5 . | . . . . . . . . . . High Security . | . . . . . . . . . . Max Security . | . . . . . . . . . . Peak Influence 679 | . 108 . 97 . 137 212 72 679 431 Initial 287 | . . . 97 . . 19 72 1 287 Average 125 | . 42 . 14 . 27 51 36 554 338 Influence Increases 4061 | . 346 315 72 . 672 716 . 1456 484 Destroy 0b10 Robot/C 1660 | . 240 140 . . 380 360 . 320 220 Destroy 0b10 Robot/NC 125 | . 25 . 5 . 20 35 . 30 10 Destroy Leader 396 | . 54 10 . . 114 82 . 86 50 Allied During Kill 229 | . . . . . 34 . . 191 4 Successful Hack 102 | . 14 . 7 . 26 . . 45 10 Select Force Hacks 60 | . . . 60 . . . . . . Disable Machine 195 | . . . . . 15 15 . 165 . Anti-Garrison Action 150 | . . . . . . . . 150 . Destroy Structure 349 | . 13 . . . 38 44 . 244 10 Partial Spotted 90 | . . . . . . 75 . . 15 Lose Combat Pursuer 705 | . . 165 . . 45 105 . 225 165 Influence Decreases 3720 | . 307 151 275 . 631 550 205 910 691 Entered New Map 544 | . . 19 106 . . 22 135 1 261 Time Decay 2064 | . 307 102 169 . 446 351 70 429 190 Lost Part 657 | . . 30 . . 50 177 . 160 240 Lost Ally 190 | . . . . . 20 . . 170 . Purge Threat 265 | . . . . . 115 . . 150 . Squads Dispatched 29 | . 2 . . . 9 7 . 10 1 Investigation 6 | . . . . . 4 1 . 1 . Extermination 10 | . . . . . 3 4 . 2 1 Reinforcement 6 | . 2 . . . 2 1 . 1 . Assault 4 | . . . . . . . . 4 . Garrison 3 | . . . . . . 1 . 2 . Intercept . | . . . . . . . . . . Searches Triggered . | . . . . . . . . . . Construction Impeded 1 | . . . . . 1 . . . . Haulers Reinforced . | . . . . . . . . . . Active Scanning Responses . | . . . . . . . . . . Cargo Convoy Interrupts . | . . . . . . . . . . Stealth | -11 -10 -10 -7 -7 -5 -4 -4 -4 -3 --------- Run | Yrd Mat Sub Rec Scr Fac Fac Was Fac Res Distress Signals 8 | . 1 . . . 1 1 . 3 2 Communications Jammed 5 | . . . . . . . . 5 . Distress Signals 5 | . . . . . . . . 5 . Times Spotted 167 | . 25 12 . . 28 30 . 40 32 Peak Tracking Total 14 | . 5 6 . . 5 5 . 13 14 Tactical Retreats 16 | . . 2 . . 1 5 . 5 3 Traps | -11 -10 -10 -7 -7 -5 -4 -4 -4 -3 ------- Run | Yrd Mat Sub Rec Scr Fac Fac Was Fac Res Traps Triggered 4 | . 1 . . . . 2 . 1 . Indirectly . | . . . . . . . . . . Trap Hack Attempts . | . . . . . . . . . . Triggered . | . . . . . . . . . . Disarmed . | . . . . . . . . . . Reprogrammed . | . . . . . . . . . . Reused . | . . . . . . . . . . Traps Extracted . | . . . . . . . . . . Installed . | . . . . . . . . . . Triggered . | . . . . . . . . . . Machines | -11 -10 -10 -7 -7 -5 -4 -4 -4 -3 ---------- Run | Yrd Mat Sub Rec Scr Fac Fac Was Fac Res Machines Disabled 18 | . . 4 . . 1 1 . 12 . Max in Single Turn 3 | . . 2 . . 1 1 . 3 . Garrison Access 2 | . . . . . . . . 2 . Machines Repaired . | . . . . . . . . . . Machines Dismantled . | . . . . . . . . . . Machines Sabotaged . | . . . . . . . . . . Overloaded Fab Kills . | . . . . . . . . . . Hacking | -11 -10 -10 -7 -7 -5 -4 -4 -4 -3 --------- Run | Yrd Mat Sub Rec Scr Fac Fac Was Fac Res Machines Accessed 43 | . 7 . 4 1 11 6 . 12 2 Terminals 26 | . 5 . 1 . 5 5 . 9 1 Fabricators . | . . . . . . . . . . Repair Stations 1 | . . . . . . . . 1 . Recycling Units 11 | . 2 . 3 . 4 1 . 1 . Scanalyzers 2 | . . . . . 1 . . 1 . Garrison Access 2 | . . . . . 1 . . . 1 Total Hacks 100 | . 21 . 10 1 20 10 . 33 5 Successful 40 | . 9 . 3 1 10 4 . 11 2 Failed 58 | . 11 . 7 . 9 6 . 22 3 Catastrophic 13 | . 1 . 1 . 4 3 . 4 . Database Lockouts 2 | . 1 . . . 1 . . . . Manual 72 | . 19 . 7 . 15 10 . 18 3 Terminals 63 | . 17 . 2 . 12 9 . 20 3 Fabricators . | . . . . . . . . . . Repair Stations 4 | . . . . . . . . 4 . Recycling Units 19 | . 4 . 8 . 4 1 . 2 . Scanalyzers 9 | . . . . . 2 . . 7 . Garrison Access 4 | . . . . . 2 . . . 2 Terminal Hacks 10 | . 3 . 1 1 2 . . 2 1 Robot Analysis 3 | . 2 . 1 . . . . . . Open Door 1 | . . . . 1 . . . . . Level Access Points 2 | . . . . . 1 . . 1 . Branch Access Points 1 | . . . . . . . . . 1 Unreport Threat 2 | . . . . . 1 . . 1 . Zone Layout 1 | . 1 . . . . . . . . Fabricator Hacks . | . . . . . . . . . . Repair Station Hacks 1 | . . . . . . . . 1 . Scan Component 1 | . . . . . . . . 1 . Recycling Unit Hacks 2 | . 2 . . . . . . . . Retrieve Components 2 | . 2 . . . . . . . . Scanalyzer 6 | . . . . . 1 . . 5 . Insert Component 1 | . . . . . . . . 1 . Analyze 1 | . . . . . . . . 1 . Retrieve Study 4 | . . . . . 1 . . 3 . Garrison Access Hacks . | . . . . . . . . . . Unauthorized Hacks 21 | . 4 . 2 . 7 4 . 3 1 Terminals 14 | . 4 . . . 3 3 . 3 1 Botnet 14 | . 4 . . . 3 3 . 3 1 Fabricators . | . . . . . . . . . . Repair Stations . | . . . . . . . . . . Recycling Units 7 | . . . 2 . 4 1 . . . Tunnel 2 | . . . 2 . . . . . . Fedlink 5 | . . . . . 4 1 . . . Scanalyzers . | . . . . . . . . . . Garrison Access . | . . . . . . . . . . Data Cores Recovered 4 | . . . . . 1 2 . 1 . Used 2 | . . . . . 1 1 . . . Hacking Detections 34 | . 6 . 3 . 7 5 . 12 1 Full Trace Events 2 | . . . 1 . . . . 1 . Feedback Events . | . . . . . . . . . . Feedback Blocked . | . . . . . . . . . . Robot Schematics Acquired . | . . . . . . . . . . Robots Built . | . . . . . . . . . . Authchips . | . . . . . . . . . . Time . | . . . . . . . . . . Total Robot Build Rating . | . . . . . . . . . . Part Schematics Acquired . | . . . . . . . . . . Parts Built . | . . . . . . . . . . Authchips . | . . . . . . . . . . Time . | . . . . . . . . . . Total Part Build Rating . | . . . . . . . . . . Part Studies Acquired 4 | . . . . . 1 . . 3 . Parts Repaired . | . . . . . . . . . . Time . | . . . . . . . . . . Parts Recycled . | . . . . . . . . . . Recycled Matter . | . . . . . . . . . . Retrieved Matter . | . . . . . . . . . . Retrieved Components 12 | . 12 . . . . . . . . Parts Scanalyzed 1 | . . . . . . . . 1 . Part Schematics Acquired . | . . . . . . . . . . Parts Damaged . | . . . . . . . . . . Bothacking | -11 -10 -10 -7 -7 -5 -4 -4 -4 -3 ------------ Run | Yrd Mat Sub Rec Scr Fac Fac Was Fac Res Used RIF Installer . | . . . . . . . . . . Robots Hacked . | . . . . . . . . . . Non-combat . | . . . . . . . . . . Combat . | . . . . . . . . . . Robot Hacks Applied . | . . . . . . . . . . Relay Couplers Released 3 | . . . . . . . . 3 . Machine Destruction 3 | . . . . . . . . 3 . Fabnet Peak Effective % . | . . . . . . . . . . Robots Rewired 1 | . . . . . . . . . 1 Allies Hacked 1 | . . . . . . . . . 1 Hacks Repelled . | . . . . . . . . . . Allies | -11 -10 -10 -7 -7 -5 -4 -4 -4 -3 -------- Run | Yrd Mat Sub Rec Scr Fac Fac Was Fac Res Total Allies 22 | . . . . 1 . . 20 . 1 Largest Group 20 | . . . . 1 1 . 20 19 1 Highest-Rated Group 778 | . . . . 67 67 . 778 751 64 Highest-Rated Ally 67 | . . . . 67 67 . 50 50 64 Initial UFD Resources 71 | . . . . . 37 59 69 69 71 Total Orders 1 | . . . . 1 . . . . . STAY 1 | . . . . 1 . . . . . Ally Attacks 146 | . . . . . 32 . . 113 1 Total Damage 5029 | . . . . . 1303 . . 3656 70 Kills 23 | . . . . . 9 . . 14 . Allies Corrupted 3 | . . . . . 1 . . 2 . Allies Melted . | . . . . . . . . . . Intel | -11 -10 -10 -7 -7 -5 -4 -4 -4 -3 ------- Run | Yrd Mat Sub Rec Scr Fac Fac Was Fac Res Active Infowar (turns) 4291 | . . . . . 1595 1252 159 914 371 Sensors 3971 | . . . . . 1475 1140 159 827 370 Traps 691 | . . . . . 555 . . 5 131 Cloaking 217 | . . . . . . . . 179 38 Jamming 368 | . . . . . . 276 . 87 5 Robot Analysis Total 3 | . 2 . 1 . . . . . . Derelict Logs Recovered 3 | . . . . 3 . . . . . Drone Launches . | . . . . . . . . . . Drone Recoveries . | . . . . . . . . . . Exploration | -11 -10 -10 -7 -7 -5 -4 -4 -4 -3 ------------- Run | Yrd Mat Sub Rec Scr Fac Fac Was Fac Res Turns Passed 13372 | 83 1272 587 1144 5335 1863 1456 159 1082 391 Spaces Moved 8705 | 46 603 211 463 2930 1405 1076 273 1412 286 Core 12 | 4 . . . . . 1 . . 7 Treads 2789 | 42 603 211 463 1470 . . . . . Legs 1437 | . . . . . 995 442 . . . Wheels 1459 | . . . . 1450 9 . . . . Hover 2584 | . . . . . . 633 273 1412 266 Flight 424 | . . . . 10 401 . . . 13 Fastest Speed 25 | 50 160 240 240 37 25 37 37 37 40 Average Speed 125 | 150 163 240 240 177 92 74 37 43 69 Slowest Speed 450 | 160 240 240 240 240 120 450 37 131 161 Overloaded Moves . | . . . . . . . . . . Propulsion Burnouts . | . . . . . . . . . . Robots Hopped 1 | . . . . . . . . . 1 Potential Cave-ins . | . . . . . . . . . . Cave-ins Triggered . | . . . . . . . . . . Exploration Rate (%) 43 | 4 91 19 66 87 26 17 82 33 5 Regions Visited 9 Branch Regions 3 Pre-discovered Areas 5 | . . . 2 2 1 . . . . Known Exits Taken 2 | . . . . . 1 . . 1 . Unknown Exits Taken 5 | 1 1 1 1 1 . . . . . Scrap Searched 5 | . . . . 5 . . . . . Spaces Dug 65 | . . . . . 12 22 . 26 5 Terrain Destroyed 202 | . 11 67 . . 17 22 . 80 5 Melee 58 | . . . . . 12 19 . 22 5 Projectile 9 | . . . . . . 3 . 6 . AOE 135 | . 11 67 . . 5 . . 52 . Terrain Rammed . | . . . . . . . . . . Walls Destroyed . | . . . . . . . . . . Machines Disabled . | . . . . . . . . . . Actions | -11 -10 -10 -7 -7 -5 -4 -4 -4 -3 --------- Run | Yrd Mat Sub Rec Scr Fac Fac Was Fac Res Total 10677 | 56 797 249 494 3071 1878 1555 330 1826 421 Wait 1087 | . 101 . 15 51 297 261 49 261 52 Move 8695 | 45 602 210 462 2929 1404 1076 272 1411 284 Hop 1 | . . . . . . . . . 1 Pick Up 144 | 3 21 5 7 34 33 21 4 12 4 Fast Attach 61 | 6 2 . 1 5 11 21 2 6 7 Attach 74 | . . 2 . 7 21 20 . 13 11 Detach 17 | . . . . 2 5 2 . 5 3 Swap 89 | 2 7 4 2 4 13 18 . 36 3 Drop 134 | . 14 . 5 39 30 20 2 24 . Fire 92 | . 50 28 2 . 1 3 . 8 . Melee 274 | . . . . . 63 113 . 47 51 Ram 1 | . . . . . . . . 1 . Kick . | . . . . . . . . . . Crush . | . . . . . . . . . . Escape Stasis . | . . . . . . . . . . Rewire 8 | . . . . . . . 1 2 5 Trap . | . . . . . . . . . . Miscellaneous . | . . . . . . . . . . Route ------- -11/Scrapyard -10/Materials (discovered 5 exits: [*Mat x3] / [*Min] / [*Sub]) -10/Subcaves -7/Recycling -7/Scraptown (discovered 2 exits: *Fac x2) -5/Factory (discovered 5 exits: *Fac x4 / Upp) -4/Factory -4/Waste -4/Factory (discovered 6 exits: *Res x4 / *Upp x2) -3/Research (discovered 3 exits: Arm / Qua x2) History --------- Turn | Location | Event 2 | -11/Scrapyard | Met Revision 17 59 | -11/Scrapyard | Discovered new exit (range 13) 84 | -11/Scrapyard | Entered Materials 229 | -10/Materials | Discovered new exit (range 9) 310 | -10/Materials | Build established: Mutant 353 | -10/Materials | Discovered new exit (range 11) 494 | -10/Materials | Central database locked down 717 | -10/Materials | Discovered new exit (range 10) 1117 | -10/Materials | Discovered new exit (range 3) 1246 | -10/Materials | Core integrity fell below 50% 1340 | -10/Materials | Discovered new exit (range 6) 1356 | -10/Materials | Entered Subcaves 1458 | -10/Subcaves | Shifting Twisted Machinery released Shrapnel Trap 1885 | -10/Subcaves | Core integrity fell below 20% 1906 | -10/Subcaves | Discovered new exit (range 16) 1930 | -10/Subcaves | Lost 3 parts (1p1n1u) 1943 | -10/Subcaves | Entered Recycling 2054 | -7/Recycling | Scanned before Scraplab entrance 3063 | -7/Recycling | Entered Scraplab 3082 | -7/Recycling | Discovered new exit (range 3) 3087 | -7/Recycling | Entered Scraptown 3087 | -7/Scraptown | System corruption cleaned by C-Scrubber 3275 | -7/Scraptown | Scanned Subdweller tech in exchange for log data 3279 | -7/Scraptown | Learned location of 2 exits from Lower Caves 3282 | -7/Scraptown | Learned location of Zion (-7) 3284 | -7/Scraptown | Learned location of 1 exit from Factory 3407 | -7/Scraptown | Visited UFD Registry 3407 | -7/Scraptown | Registered with UFD as "Powerplate" 3465 | -7/Scraptown | Visited CR-KLE's Repair Center 3489 | -7/Scraptown | Visited Cave Peace 3542 | -7/Scraptown | Visited TADAMA 3568 | -7/Scraptown | Visited Cyclists 3654 | -7/Scraptown | Discovered new exit (range 9) 3736 | -7/Scraptown | Guru changed UFD alias to "Pyrogrid" 3954 | -7/Scraptown | Visited Sword Containment 3978 | -7/Scraptown | Found Prototype Slashing Weapon 4068 | -7/Scraptown | Visited Chapter 10 4230 | -7/Scraptown | Visited Curators Association 4297 | -7/Scraptown | Visited Supply Room 4328 | -7/Scraptown | Visited Scrapoid Pod Storage 4350 | -7/Scraptown | Visited LU-1G1's Boring Crew 4386 | -7/Scraptown | Visited Derelict Rescue Squad 4401 | -7/Scraptown | Found DRS Beacon 4450 | -7/Scraptown | Visited Infowarlord's Domain 4461 | -7/Scraptown | Found Exp. Sensor Array 4510 | -7/Scraptown | Visited Botcube Research 4618 | -7/Scraptown | Visited Fellowship of the Rings 4817 | -7/Scraptown | Learned location of Extension (-6) 6122 | -7/Scraptown | Visited Shadow of the Wyrm 6153 | -7/Scraptown | Visited Symbiants 7022 | -7/Scraptown | Found Lrg. Botcube 7642 | -7/Scraptown | Identified Companion Sword 7648 | -7/Scraptown | CR-KLE repaired 6 parts 8134 | -7/Scraptown | Lrg. Botcube activated 8170 | -7/Scraptown | Lrg. Botcube completed mutation into treaded form, armed with 4 guns 8285 | -7/Scraptown | Discovered new exit (range 3) 8361 | -7/Scraptown | Met Optimus 8361 | -7/Scraptown | Accepted into 0bPrime 8422 | -7/Scraptown | Entered Factory 8422 | -5/Factory | Accompanied by 1 ally 8422 | -5/Factory | Evolved 10 slots: Propulsion x4, Utility x6 8423 | -5/Factory | Identified exit to Upper Caves 8591 | -5/Factory | Loaded intel: 8 recycling unit locations 8593 | -5/Factory | Identified exit to Factory 8848 | -5/Factory | Learned location of Protoforge (-3) 8983 | -5/Factory | Build established: Scavenger-Assassin 9082 | -5/Factory | Central database locked down 9301 | -5/Factory | Build established: Scavenger-Mutant 10285 | -5/Factory | Entered another Factory area 10285 | -4/Factory | Evolved 2 slots: Power x1, Utility x1 10364 | -4/Factory | Loaded intel: 8 recycling unit locations 10606 | -4/Factory | Lost 10 parts (2p6n2u) 11358 | -4/Factory | Lost 5 parts (4n1u) 11562 | -4/Factory | Found Prototype Device 11562 | -4/Factory | Identified Exp. ECM Suite 11652 | -4/Factory | Garrison activated, responded to threat 11679 | -4/Factory | Core integrity fell below 50% 11732 | -4/Factory | Lost 6 parts (1p3n2u) 11741 | -4/Factory | Sucked down chute 11741 | -4/Factory | Entered Waste 11742 | -4/Waste | Joined by Warlord forces that had cleared the area 11781 | -4/Waste | Discovered new exit (range 14) 11851 | -4/Waste | Identified exit to Factory 11900 | -4/Waste | Entered Factory 11900 | -4/Factory | Accompanied by 19 allies 11948 | -4/Factory | Garrison activated, responded to threat 11979 | -4/Factory | Lost 9 allies 12080 | -4/Factory | Garrison activated, responded to threat 12084 | -4/Factory | Spotted B-86 Titan 12123 | -4/Factory | Lost 3 allies 12292 | -4/Factory | Discovered new exit (range 4) 12293 | -4/Factory | Identified exit to Upper Caves 12309 | -4/Factory | Discovered exit to Upper Caves (range 15) 12310 | -4/Factory | Identified exit to Research 12880 | -4/Factory | System corruption reached 10% 12938 | -4/Factory | Core integrity fell below 20% 12982 | -4/Factory | Entered Research 12982 | -3/Research | Evolved 2 slots: Utility x2 12991 | -3/Research | Lost 12 parts (2p7n3u) 13082 | -3/Research | Identified exit to Armory 13082 | -3/Research | Identified exit to Quarantine 13160 | -3/Research | P-80 Master assimilated allied Warden 8a 13240 | -3/Research | Lost 11 parts (2p6n3u) 13356 | -3/Research | Core integrity fell below 50% 13367 | -3/Research | Core integrity fell below 20% 13373 | -3/Research | Destroyed by P-80 Master with Gamma Rifle Last Messages --------------- 13360_ U-05 Engineer destroyed. 13361_ Acquired Xenon Bombardment Thruster. 13361_ Penetrated by Slug. 13361_ Lrn. Sensor Array destroyed. 13361_ Field Propulsion Drive destroyed. 13361_ K-01 Serf collects debris. 13363_ U-05 Engineer builds a Wall. 13363_ K-01 Serf collects debris. 13364_ Penetrated by Slug. 13364_ Adv. Heat Sink destroyed. 13364_ Penetrated by Slug. 13364_ Gyrokinetic Inverter destroyed. 13366_ Xenon Bombardment Thruster destroyed. 13369_ Slug penetrates Wall. 13369_ Penetrated by Slug. 13369_ P-80 Master suffers critical hit (Destroy). 13370_ System corrupted: Component data lost. 13370_ K-01 Serf collects debris. 13372_ Slug penetrates Wall. Map ----- +----------------------------------------------------+ | ???????????????????????# """" ###### ! #??? | | ???????????????????????# """" + #??? | | ???????????????????????# """"" ###### #??? | | ???????????????????????# """" #????#+#### #??? | | ???????????????????????# #?????????? #??? | | ???????????????????????# #?????????? #??? | | ???????????????????????#####+#####??????????? #??? | | ????????????????????????# #????????????? #??? | | ????????????????????????# #??????????????#??? | | ????????????????????????# #######????????#### | | ????????????????????????# " ??? | | ????????????????????????# #########??????? | | ???????????????########## #????????????????# | | ???????????????# ### ###????????????????# | | ???????????????# #?# #??????????????????# | | ???????????????# #?# ########?????????### | | ???????????????# #?# # #?????????# | | ???????????????# ! #?# # #?????????# | | ???????????????# #?# #=! *!#?????????# | | ???????????????# ### %# [ !%#?????????# | | ???????????????# ### %+%!! =!###???????# | | ???????????????# ### #!! %# #???????# | | ???????????????####+##+#### ################## | | ??????????##??????# g | | ??????????# ????# g | | ??????????# ### p @ u k = [=! | | ??????????+ p p *%| g *%[*= | | ??????????# ! ###########################/###### | | ??????????# ??????##????????????????????#%=* | | ??????????##??????????????????????????????#*% | | ??????????????????????????????????????????#% "" | | ??????????????????????????????????????????# " | | ??????????????????????????????????????????#!% "" | | ??????????????????????????????????????????#! | | ??????????????????????????????????????????# | | ??????????????????????????????????????????# | | ??????????????????????????????????????????###### # | | ????????????????????????????????????????????????## | | ?????????????????????????????????????????????????? | | ?????????????????????????????????????????????????? | | ?????????????????????????????????????????????????? | | ?????????????????????????????????????????????????? | | ?????????????????????????????????????????????????? | | ?????????????????????????????????????????????????? | | ?????????????????????????????????????????????????? | | ?????????????????????????????????????????????????? | | ?????????????????????????????????????????????????? | | ?????????????????????????????????????????????????? | | ???????????????????????>?????????????????????????? | | ?????????????????????????????????????????????????? | +----------------------------------------------------+ Best States ------------- Heat Dissipation 74 Energy Generation 39 Energy Capacity 505 Matter Stores 300 Matter Capacity 300 Sight Range 16 Robot Scan Range 20 Terrain Scan Density 10 Jamming Range 14 Cloak Strength 3 Corruption Containment 12 Armor Coverage 600 Resistance: KI 25 Melee Speed Boost 30 Phase Shifting 15 Evasion (%) 69 Melee Accuracy 30 Core Analysis 6 Recoil Reduction 2 Offensive Hacking 14 Defensive Hacking 12 Item Schematics ----------------- None Robot Schematics ------------------ None Fabricated ------------ Nothing Repaired ---------- Nothing Studied --------- Antigrav System | -5/Factory | Hacked Cmb. Gravmag System | -4/Factory | Hacked Linear Gravjet | -4/Factory | Hacked Imp. Linear Gravjet | -4/Factory | Hacked Alien Tech Used ----------------- None Achievements -------------- None Challenges ------------ None Game ------ Seed ImprinterTachyonTelecube Manual? 0 Play Time 02:01:42 Cumulative 207.8 hours Start 2026.08.09 @ 01:21:38 End 2026.08.09 @ 03:34:07 Sessions 1 Manual Loads 0 Difficulty Rogue Special Mode None Game No. 217 Rogue 163 Adventurer 54 Explorer 0 Win Type - Total 9 Types 5/0/1/1/0/0/0/1/0/1 Lore% 71 Gallery% 60 Achievement% 57 Wizard Run 0 Options --------- Layout 1 ASCII 0 Keyboard 0 Movement Mouse Keybinds 1 Fullscreen 2 Font 32/Tamsyn Map View 50x35 Zoom Use 0% Tactical HUD 1 Map Filters NONE Filters NONE Steam 1 RUN: ebee62bb-2941-4b7f-bc2b-ba0a892bc4d9